bitfinex/quotes_SOLUSD_20250416
["timestamp","ask_amount","ask_price","bid_price","bid_amount"]
[1744820050765,60.84630401,128.67,128.62,34.84630401]
[1744820051791,60.84630401,128.67,128.61,19.83535505]
[1744820051792,34.84630401,128.66,128.61,54.68165906]
[1744820052468,34.84630401,128.65,128.61,54.68165906]
[1744820052666,34.84630401,128.65,128.61,19.83535505]
[1744820053489,34.84630401,128.65,128.61,54.68165906]
[1744820053669,42.61884734,128.66,128.61,54.68165906]
[1744820053869,34.84630401,128.66,128.61,54.68165906]
[1744820054072,60.84630401,128.67,128.62,34.84630401]
[1744820054885,60.84630401,128.67,128.62,42.62056667]
[1744820055591,1.7241,128.7,128.64,34.84630401]
[1744820055771,1.7241,128.7,128.65,34.84630401]
[1744820055772,34.90930401,128.7,128.65,34.84630401]
[1744820055967,0.063,128.7,128.66,46.90630401]
[1744820056172,0.063,128.7,128.67,34.84630401]
[1744820056363,0.063,128.7,128.68,34.84630401]
[1744820056568,0.063,128.7,128.66,46.90630401]
[1744820056986,0.063,128.7,128.67,42.61812339]
[1744820059190,0.063,128.7,128.69,42.61691555]
[1744820060995,0.063,128.7,128.69,7.77061154]
[1744820061998,0.063,128.7,128.68,7.77106807]
[1744820062795,0.063,128.7,128.68,42.61737208]
[1744820063385,0.063,128.7,128.69,34.84630401]
[1744820064391,0.063,128.7,128.69,42.61691555]
[1744820064797,0.063,128.7,128.69,34.84630401]
[1744820064981,0.063,128.7,128.68,7.77093888]
[1744820065185,21.80420916,128.7,128.66,33.80120916]
[1744820065382,21.74120916,128.69,128.66,12.06]
[1744820065582,21.74120916,128.68,128.66,12.06]
[1744820066000,21.74120916,128.67,128.64,12.04]
[1744820066317,21.74120916,128.65,128.64,12.04]
[1744820067203,34.81420474,128.65,128.64,12.04]
[1744820068789,26.0,128.65,128.64,12.04]
[1744820069807,60.81420474,128.67,128.64,12.04]
[1744820070999,68.58618098,128.67,128.64,12.04]
[1744820071305,60.81420474,128.67,128.64,12.04]
[1744820071601,60.81420474,128.67,128.64,19.81359756]
[1744820072104,60.81420474,128.67,128.64,12.04]
[1744820072803,34.81420474,128.69,128.65,34.81420474]
[1744820073000,0.063,128.7,128.66,34.81420474]
[1744820074098,34.87720474,128.7,128.66,34.81420474]
[1744820074285,34.87720474,128.7,128.65,34.81420474]
[1744820074487,34.81420474,128.69,128.65,34.81420474]
[1744820074701,34.81420474,128.69,128.65,42.58682444]
[1744820074904,34.81420474,128.69,128.65,7.7726197]
[1744820075708,34.81420474,128.68,128.65,7.7726197]
[1744820076611,34.81420474,128.67,128.64,19.81334973]
[1744820076807,34.81420474,128.67,128.64,12.04]
[1744820077005,34.81420474,128.67,128.64,19.81349055]
[1744820079112,34.81420474,128.66,128.64,12.04]
[1744820079487,7.77188859,128.67,128.64,12.04]
[1744820079688,34.81420474,128.65,128.64,12.04]
[1744820079891,34.81420474,128.67,128.64,12.04]
[1744820080091,34.81420474,128.67,128.64,19.81344281]
[1744820080998,26.0,128.68,128.64,54.62764755]
[1744820081696,34.81420474,128.69,128.65,34.81420474]
[1744820081898,34.81420474,128.69,128.64,54.62764755]
[1744820082098,34.81420474,128.68,128.64,54.62764755]
[1744820082592,34.81420474,128.68,128.64,19.81344281]
[1744820083324,34.81420474,128.68,128.64,54.62764755]
[1744820084033,34.81420474,128.69,128.64,54.62764755]
[1744820084198,34.81420474,128.69,128.65,34.81420474]
[1744820085021,60.87720474,128.7,128.65,34.81420474]
[1744820085412,60.87720474,128.7,128.66,7.77242344]
[1744820086129,34.81420474,128.69,128.66,7.77242344]
[1744820086426,34.81420474,128.68,128.65,7.77270825]
[1744820087318,21.74847933,128.68,128.65,7.77270825]
[1744820090820,29.51981392,128.68,128.64,19.81353325]
[1744820091023,21.74847933,128.67,128.64,12.04]
[1744820091337,21.74847933,128.66,128.64,12.04]
[1744820091629,21.74847933,128.65,128.64,12.04]
[1744820092022,26.0,128.67,128.64,19.8134731]
[1744820092199,47.74847933,128.67,128.64,19.8134731]
[1744820092401,55.52051956,128.67,128.64,12.04]
[1744820092608,21.74847933,128.65,128.64,12.04]
[1744820093021,21.74847933,128.66,128.64,12.04]
[1744820094937,26.0,128.67,128.64,41.56210565]
[1744820095119,26.0,128.69,128.65,21.74847933]
[1744820095319,21.74847933,128.69,128.64,41.56210565]
[1744820099247,21.74847933,128.69,128.66,7.77242344]
[1744820099617,33.83335248,128.7,128.66,7.77242344]
[1744820099817,21.74847933,128.69,128.66,7.77242344]
[1744820100441,0.063,128.7,128.66,29.52090277]
[1744820101935,29.58155516,128.7,128.66,29.52090277]
[1744820102135,21.81147933,128.7,128.66,29.52090277]
[1744820102332,26.063,128.7,128.66,29.52090277]
[1744820102536,26.063,128.7,128.67,21.74847933]
[1744820103348,26.063,128.7,128.66,35.58330277]
[1744820103850,0.063,128.7,128.66,35.58330277]
[1744820107453,21.81147933,128.7,128.67,12.02]
[1744820107835,0.063,128.7,128.67,12.02]
[1744820108157,0.063,128.7,128.67,33.76847933]
[1744820108339,0.063,128.7,128.69,21.74847933]
[1744820109157,0.063,128.7,128.69,29.51909087]
[1744820109357,0.063,128.7,128.68,29.5193855]
[1744820109659,0.063,128.7,128.69,12.02]
[1744820110252,21.81147933,128.7,128.69,12.02]
[1744820111863,29.5814871,128.7,128.65,9.39968989]
[1744820112165,21.74847933,128.69,128.67,12.02]
[1744820113951,0.063,128.7,128.67,41.54012818]
[1744820114468,21.81147933,128.7,128.67,19.79164885]
[1744820114634,29.58166469,128.7,128.67,12.02]
[1744820114835,21.74847933,128.69,128.67,12.02]
[1744820115252,29.51917931,128.69,128.67,12.02]
[1744820115953,29.58178503,128.7,128.67,12.02]
[1744820117068,21.74847933,128.69,128.67,12.02]
[1744820118467,29.51931012,128.69,128.67,12.02]
[1744820118662,21.74847933,128.68,128.67,12.02]
[1744820119768,29.51969474,128.68,128.67,12.02]
[1744820120646,26.0,128.69,128.67,12.02]
[1744820121565,26.0,128.69,128.67,19.79146694]
[1744820121966,26.0,128.69,128.67,12.02]
[1744820122362,21.74847933,128.68,128.67,12.02]
[1744820123669,26.0,128.69,128.67,12.02]
[1744820124450,26.0,128.69,128.67,19.79153888]
[1744820125377,26.0,128.69,128.67,12.02]
[1744820125747,26.0,128.69,128.67,19.79179985]
[1744820125948,26.0,128.69,128.67,12.02]
[1744820126148,21.74847933,128.68,128.67,12.02]
[1744820128152,29.51969474,128.68,128.67,12.02]
[1744820129177,21.74847933,128.68,128.67,12.02]
[1744820129670,47.74847933,128.69,128.67,12.02]
[1744820130046,26.0,128.69,128.67,19.79181684]
[1744820130265,0.063,128.7,128.67,19.79181684]
[1744820130575,26.063,128.7,128.67,19.79181684]
[1744820131374,47.81147933,128.7,128.67,19.79181684]
[1744820131577,47.81147933,128.7,128.67,12.02]
[1744820131748,47.81147933,128.7,128.67,19.79181307]
[1744820131949,26.063,128.7,128.67,19.79181307]
[1744820132257,0.063,128.7,128.67,19.79181307]
[1744820133572,0.063,128.7,128.67,41.5402924]
[1744820134152,0.063,128.7,128.68,21.74847933]
[1744820134771,0.063,128.7,128.69,21.74847933]
[1744820134953,0.063,128.7,128.69,40.39812819]
[1744820135147,0.063,128.7,128.69,62.14660752]
[1744820135565,0.063,128.7,128.69,29.51909087]
[1744820135873,0.063,128.7,128.69,21.74847933]
[1744820136061,0.063,128.7,128.69,29.51909087]
[1744820136386,0.063,128.7,128.69,21.74847933]
[1744820136754,0.063,128.7,128.68,23.25317933]
[1744820137877,0.063,128.7,128.69,21.74847933]
[1744820138773,0.063,128.7,128.69,40.39812819]
[1744820138962,0.063,128.7,128.69,121.09812819]
[1744820139776,0.063,128.7,128.69,128.86873973]
[1744820142166,0.063,128.7,128.69,150.61721906]
[1744820143175,0.063,128.73,128.72,26.0]
[1744820143383,0.063,128.73,128.72,142.07147933]
[1744820143761,0.063,128.73,128.72,149.84027982]
[1744820144768,0.063,128.74,128.73,18.64964886]
[1744820145064,0.063,128.74,128.73,40.39812819]
[1744820146281,0.063,128.74,128.73,48.16632519]
[1744820147757,0.063,128.74,128.73,128.86632519]
[1744820148790,1e-08,128.75,128.73,150.61480452]
[1744820149082,0.00340955,128.76,128.75,18.64964886]
[1744820149280,0.00340955,128.76,128.75,121.09812819]
[1744820152692,0.00340955,128.76,128.75,128.86511848]
[1744820153195,0.00340955,128.76,128.75,150.61359781]
[1744820153363,0.063,128.79,128.78,44.64964886]
[1744820153570,0.063,128.79,128.78,159.07812819]
[1744820154784,0.063,128.81,128.79,18.64964886]
[1744820154982,0.063,128.82,128.81,44.64964886]
[1744820155184,0.063,128.82,128.81,411.12660752]
[1744820155383,0.063,128.82,128.81,389.37812819]
[1744820155575,0.063,128.82,128.81,344.72847933]
[1744820156179,0.063,128.82,128.81,242.28]
[1744820156491,21.81147933,128.82,128.81,254.24]
[1744820156995,29.57424908,128.82,128.81,254.24]
[1744820158094,26.063,128.82,128.81,254.24]
[1744820158296,0.063,128.82,128.81,275.98847933]
[1744820158503,0.063,128.82,128.81,254.24]
[1744820160875,0.063,128.82,128.81,275.98847933]
[1744820161400,0.063,128.82,128.81,283.75185173]
[1744820162496,0.063,128.82,128.81,404.84997992]
[1744820162906,0.063,128.83,128.81,411.01135668]
[1744820163086,0.063,128.83,128.82,62.14660752]
[1744820163404,0.063,128.83,128.82,142.84660752]
[1744820164892,0.063,128.84,128.83,7.76216719]
[1744820165195,0.063,128.84,128.83,48.16029538]
[1744820168310,0.063,128.84,128.83,128.86029538]
[1744820168512,0.063,128.87,128.83,128.86029538]
[1744820168513,0.063,128.87,128.86,26.0]
[1744820168809,0.063,128.87,128.86,140.40847933]
[1744820170605,0.063,128.87,128.86,159.05812819]
[1744820170991,0.063,128.87,128.86,133.05812819]
[1744820171392,0.063,128.87,128.86,114.40847933]
[1744820172807,0.063,128.87,128.86,92.66]
[1744820173590,0.063,128.87,128.86,140.81848827]
[1744820175314,0.063,128.87,128.86,114.40847933]
[1744820177203,0.063,128.87,128.86,140.81848827]
[1744820178215,0.063,128.87,128.86,122.16883941]
[1744820178419,0.063,128.87,128.86,92.66]
[1744820178918,0.063,128.87,128.86,114.40847933]
[1744820179303,0.063,128.87,128.86,92.66]
[1744820179505,0.063,128.87,128.86,114.40847933]
[1744820180789,0.063,128.87,128.86,11.96]
[1744820181013,21.81147933,128.87,128.86,11.96]
[1744820181423,55.57123722,128.87,128.86,11.96]
[1744820181715,26.0,128.84,128.81,11.96]
[1744820181925,21.74847933,128.82,128.81,11.96]
[1744820182901,29.51124908,128.82,128.81,11.96]
[1744820183222,34.73009276,128.82,128.81,11.96]
[1744820183409,36.38189276,128.83,128.81,11.96]
[1744820184526,34.73009276,128.82,128.81,11.96]
[1744820185224,6.5245,128.81,128.78,11.96]
[1744820185429,34.73009276,128.79,128.78,11.96]
[1744820186306,60.73009276,128.79,128.76,11.94]
[1744820186506,34.73009276,128.77,128.76,11.94]
[1744820187610,36.29849276,128.77,128.76,11.94]
[1744820187811,44.06427671,128.77,128.76,11.94]
[1744820189126,123.44401833,128.77,128.75,0.063]
[1744820189329,34.73009276,128.76,128.75,0.063]
[1744820189529,62.29849276,128.77,128.75,0.063]
[1744820189704,27.5684,128.77,128.75,0.063]
[1744820190029,34.73009276,128.76,128.75,0.063]
[1744820190323,62.29849276,128.77,128.75,0.063]
[1744820190510,27.5684,128.77,128.75,0.063]
[1744820190710,77.22657259,128.76,128.75,0.063]
[1744820191441,34.73009276,128.76,128.75,0.063]
[1744820192108,42.49647983,128.76,128.75,0.063]
[1744820192629,26.0,128.73,128.72,11.94]
[1744820192831,60.73009276,128.73,128.72,11.94]
[1744820193219,68.49828976,128.73,128.72,11.94]
[1744820196411,68.49828976,128.73,128.69,0.063]
[1744820196612,34.73009276,128.7,128.69,0.063]
[1744820197619,60.73009276,128.7,128.69,0.063]
[1744820197842,104.84589329,128.7,128.69,0.063]
[1744820198212,70.11580053,128.7,128.69,0.063]
[1744820198733,97.49554215,128.7,128.69,0.063]
[1744820198931,53.37974162,128.69,128.68,0.063]
[1744820200017,26.0,128.66,128.62,242.343]
[1744820200248,34.73009276,128.63,128.62,242.343]
[1744820200416,34.73009276,128.63,128.62,0.063]
[1744820202012,42.50432894,128.63,128.62,0.063]
[1744820202838,26.0,128.63,128.62,0.063]
[1744820203924,7.77198026,128.67,128.62,34.79309276]
[1744820204124,34.73009276,128.66,128.62,34.79309276]
[1744820205448,42.50252794,128.66,128.62,34.79309276]
[1744820205741,34.73009276,128.65,128.62,0.063]
[1744820206521,15.77137397,128.7,128.64,34.73009276]
[1744820206728,42.4996815,128.71,128.66,34.73009276]
[1744820206942,26.0,128.7,128.67,34.73009276]
[1744820207246,42.49909695,128.72,128.68,34.73009276]
[1744820207445,50.40267478,128.73,128.68,34.73009276]
[1744820207632,60.73009276,128.72,128.68,34.73009276]
[1744820207945,34.73009276,128.72,128.67,34.73009276]
[1744820208126,34.73009276,128.7,128.66,34.73009276]
[1744820208929,26.0,128.71,128.65,92.66]
[1744820208930,34.73009276,128.69,128.65,127.39009276]
[1744820209427,34.73009276,128.69,128.65,11.96]
[1744820210245,42.5010342,128.69,128.65,11.96]
[1744820210654,26.0,128.68,128.65,11.96]
[1744820210825,34.73009276,128.66,128.62,0.063]
[1744820211131,34.73009276,128.63,128.62,0.063]
[1744820211639,26.0,128.65,128.62,0.063]
[1744820211843,34.73009276,128.63,128.62,0.063]
[1744820212028,34.73009276,128.64,128.62,0.063]
[1744820212235,42.50432894,128.63,128.62,0.063]
[1744820222449,61.1539778,128.63,128.62,0.063]
[1744820226563,33.77423618,128.63,128.62,0.063]
[1744820226739,68.50432894,128.63,128.62,0.063]
[1744820227055,87.1539778,128.63,128.62,0.063]
[1744820227440,44.64964886,128.61,128.6,0.03]
[1744820227640,79.37974162,128.61,128.6,0.03]
[1744820227861,60.73009276,128.61,128.6,0.03]
[1744820229168,68.5055379,128.61,128.6,0.03]
[1744820229940,61.15518676,128.61,128.6,0.03]
[1744820230643,44.64964886,128.59,128.58,0.03]
[1744820230845,79.37974162,128.59,128.58,0.03]
[1744820231260,87.1563961,128.59,128.58,0.03]
[1744820232157,125.77036533,128.59,128.58,1e-08]
[1744820232550,69.46018552,128.58,128.57,1e-08]
[1744820233452,77.23744481,128.58,128.57,1e-08]
[1744820233655,77.23744481,128.58,128.56,1e-08]
[1744820233656,34.73009276,128.57,128.56,1e-08]
[1744820233962,44.64964886,128.54,128.53,0.03]
[1744820234159,79.37974162,128.54,128.53,0.03]
[1744820235344,42.51037751,128.53,128.52,11.97]
[1744820235859,61.16002637,128.53,128.52,0.03]
[1744820236052,18.64964886,128.52,128.49,0.03]
[1744820236253,44.64964886,128.5,128.49,0.03]
[1744820236475,26.0,128.46,128.45,0.03]
[1744820236653,60.73009276,128.46,128.45,0.03]
[1744820237257,79.37974162,128.46,128.45,0.03]
[1744820237464,121.89435874,128.46,128.45,1e-08]
[1744820238345,121.89435874,128.46,128.39,11.94]
[1744820238346,26.0,128.42,128.39,11.94]
[1744820238547,34.73009276,128.4,128.35,11.94]
[1744820238765,26.0,128.42,128.36,34.73009276]
[1744820238959,26.0,128.42,128.37,34.73009276]
[1744820239164,7.78452436,128.46,128.4,34.73009276]
[1744820239370,34.73009276,128.43,128.41,11.94]
[1744820239669,7.78606946,128.44,128.4,11.94]
[1744820239670,42.51616222,128.44,128.4,11.94]
[1744820240249,26.0,128.45,128.42,34.73009276]
[1744820240765,34.73009276,128.44,128.4,19.7875]
[1744820240976,26.0,128.45,128.42,34.73009276]
[1744820241477,68.51524249,128.45,128.4,19.7875]
[1744820241769,34.73009276,128.44,128.4,54.51759276]
[1744820242074,34.73009276,128.43,128.4,11.94]
[1744820242855,34.73009276,128.44,128.4,46.67009276]
[1744820243061,34.73009276,128.45,128.41,34.73009276]
[1744820243453,26.0,128.46,128.44,34.73009276]
[1744820243965,34.73009276,128.48,128.44,34.73009276]
[1744820244167,60.73009276,128.47,128.4,19.72810626]
[1744820244371,34.73009276,128.45,128.4,11.94]
[1744820244563,34.73009276,128.45,128.4,46.67009276]
[1744820244867,34.73009276,128.43,128.4,11.94]
[1744820245378,34.73009276,128.41,128.4,11.94]
[1744820245748,34.73009276,128.42,128.4,11.94]
[1744820245953,42.51652664,128.43,128.4,11.94]
[1744820246158,34.73009276,128.42,128.4,11.94]
[1744820246575,34.73009276,128.43,128.4,11.94]
[1744820246776,68.5160377,128.44,128.4,11.94]
[1744820247073,34.73009276,128.43,128.4,11.94]
[1744820247662,34.73009276,128.42,128.4,11.94]
[1744820247874,34.73009276,128.41,128.4,11.94]
[1744820248269,60.73009276,128.41,128.4,11.94]
[1744820248468,60.73009276,128.41,128.36,11.94]
[1744820248469,26.0,128.38,128.36,11.94]
[1744820248669,34.73009276,128.37,128.36,11.94]
[1744820249176,34.73009276,128.38,128.36,11.94]
[1744820249564,26.0,128.39,128.36,46.67009276]
[1744820250081,20.30144886,128.44,128.38,34.73009276]
[1744820250082,60.73009276,128.42,128.38,34.73009276]
[1744820250970,53.37974162,128.46,128.38,34.73009276]
[1744820250971,60.73009276,128.43,128.38,34.73009276]
[1744820251884,34.73009276,128.42,128.38,34.73009276]
[1744820252263,34.73009276,128.42,128.37,7.78954578]
[1744820252462,34.73009276,128.42,128.38,34.73009276]
[1744820252879,34.73009276,128.41,128.36,11.94]
[1744820253063,34.73009276,128.42,128.37,34.73009276]
[1744820253588,34.73009276,128.42,128.36,11.94]
[1744820253791,34.73009276,128.42,128.37,34.73009276]
[1744820254087,42.51748345,128.42,128.37,42.5200533]
[1744820254485,34.73009276,128.41,128.37,42.5200533]
[1744820254686,34.73009276,128.41,128.37,34.73009276]
[1744820255164,34.73009276,128.4,128.36,46.67009276]
[1744820255368,34.73009276,128.4,128.36,11.94]
[1744820256183,34.73009276,128.4,128.36,19.73052759]
[1744820256370,34.73009276,128.39,128.36,11.94]
[1744820256576,34.73009276,128.38,128.36,11.94]
[1744820256777,34.73009276,128.4,128.36,11.94]
[1744820257084,68.51784905,128.41,128.36,54.46053383]
[1744820257282,34.73009276,128.4,128.36,19.73044107]
[1744820257464,34.73009276,128.4,128.36,54.46053383]
[1744820257869,33.78775629,128.41,128.36,54.46053383]
[1744820257870,60.73009276,128.41,128.36,54.46053383]
[1744820258070,68.51679612,128.43,128.38,34.73009276]
[1744820258566,34.73009276,128.42,128.38,34.73009276]
[1744820258771,34.73009276,128.42,128.37,34.73009276]
[1744820259564,34.73009276,128.4,128.36,54.46053383]
[1744820259769,34.73009276,128.39,128.36,11.94]
[1744820260188,34.73009276,128.38,128.36,11.94]
[1744820260987,42.51886911,128.39,128.36,11.94]
[1744820261286,34.73009276,128.37,128.36,11.94]
[1744820262592,42.52007484,128.37,128.36,11.94]
[1744820262884,34.73009276,128.39,128.36,11.94]
[1744820263480,60.73009276,128.4,128.36,54.46060885]
[1744820263684,68.51826424,128.4,128.36,54.46060885]
[1744820263886,60.73009276,128.4,128.36,11.94]
[1744820264087,68.51829049,128.4,128.36,19.73054592]
[1744820264287,60.73009276,128.4,128.36,19.73054592]
[1744820264594,60.73009276,128.4,128.36,54.46063868]
[1744820264781,60.73009276,128.4,128.36,19.73054592]
[1744820264970,34.73009276,128.38,128.36,11.94]
[1744820265173,34.73009276,128.37,128.36,11.94]
[1744820265694,60.73009276,128.37,128.36,11.94]
[1744820266283,68.52007484,128.37,128.36,11.94]
[1744820267382,60.73009276,128.37,128.36,11.94]
[1744820268108,68.52007484,128.37,128.36,11.94]
[1744820270378,42.51969393,128.38,128.36,11.94]
[1744820270901,34.73009276,128.37,128.36,11.94]
[1744820271292,7.78960117,128.38,128.36,11.94]
[1744820271589,42.51969393,128.38,128.36,11.94]
[1744820271989,34.73009276,128.37,128.36,11.94]
[1744820272704,42.52007484,128.37,128.36,11.94]
[1744820272877,42.52007484,128.37,128.32,13.4881]
[1744820273197,60.73009276,128.38,128.34,34.73009276]
[1744820274077,26.0,128.38,128.34,34.73009276]
[1744820274273,60.73009276,128.4,128.35,34.73009276]
[1744820274477,19.46785506,128.42,128.38,34.73009276]
[1744820274478,42.51732747,128.42,128.38,34.73009276]
[1744820274691,42.51674631,128.43,128.39,34.73009276]
[1744820274899,34.73009276,128.42,128.38,46.67009276]
[1744820275685,68.51674631,128.43,128.38,46.67009276]
[1744820275882,68.51674631,128.43,128.39,34.73009276]
[1744820276182,34.73009276,128.42,128.38,46.67009276]
[1744820277301,42.51735197,128.42,128.38,46.67009276]
[1744820277696,7.78725921,128.42,128.38,46.67009276]
[1744820278002,60.73009276,128.43,128.39,34.73009276]
[1744820278197,26.0,128.43,128.39,34.73009276]
[1744820278398,34.73009276,128.42,128.38,11.94]
[1744820278784,34.73009276,128.42,128.38,54.45936889]
[1744820278983,34.73009276,128.42,128.38,46.67009276]
[1744820279201,42.51720715,128.42,128.38,46.67009276]
[1744820279498,68.51673799,128.43,128.38,54.45938953]
[1744820279705,68.51673799,128.43,128.38,19.72929677]
[1744820279883,34.73009276,128.42,128.38,46.67009276]
[1744820280079,68.51673799,128.43,128.38,54.45929318]
[1744820280288,68.51673799,128.43,128.39,34.73009276]
[1744820280698,34.73009276,128.41,128.38,11.94]
[1744820280906,34.73009276,128.4,128.38,11.94]
[1744820281296,42.51886135,128.39,128.38,11.94]
[1744820282902,61.99078283,128.39,128.34,11.92]
[1744820283110,34.73009276,128.36,128.34,11.92]
[1744820283288,34.73009276,128.37,128.34,11.92]
[1744820285387,34.73009276,128.35,128.34,11.92]
[1744820285903,42.51963814,128.38,128.34,11.92]
[1744820286091,34.73009276,128.37,128.34,11.92]
[1744820287102,80.20081412,128.4,128.34,54.44167211]
[1744820287103,42.51931106,128.39,128.34,54.44167211]
[1744820287304,34.73009276,128.38,128.34,54.44167211]
[1744820288206,7.78573653,128.44,128.37,34.73009276]
[1744820288383,7.78573653,128.44,128.4,34.73009276]
[1744820288384,42.51582929,128.44,128.4,34.73009276]
[1744820288589,42.51582929,128.44,128.41,11.92]
[1744820288808,34.73009276,128.43,128.41,11.92]
[1744820289292,21.8314223,128.44,128.41,11.92]
[1744820289486,29.61674918,128.45,128.41,11.92]
[1744820289693,55.61674918,128.45,128.41,11.92]
[1744820290700,21.8314223,128.43,128.41,11.92]
[1744820290899,21.8314223,128.42,128.41,11.92]
[1744820291113,47.8314223,128.42,128.41,11.92]
[1744820291307,60.94563171,128.42,128.36,7.79025263]
[1744820291614,34.94563171,128.38,128.35,7.79092693]
[1744820291808,34.94563171,128.37,128.34,80.7]
[1744820292012,34.94563171,128.37,128.34,92.62]
[1744820292211,34.94563171,128.37,128.34,100.411796]
[1744820292594,26.0,128.39,128.34,100.411796]
[1744820292595,33.7890629,128.39,128.34,100.411796]
[1744820292910,34.94563171,128.38,128.34,100.411796]
[1744820293298,33.7890629,128.39,128.34,100.411796]
[1744820293299,34.94563171,128.37,128.34,100.411796]
[1744820293509,33.7890629,128.39,128.32,0.03]
[1744820293510,34.94563171,128.35,128.32,0.03]
[1744820293693,34.94563171,128.34,128.32,11.95]
[1744820293895,33.7890629,128.39,128.33,34.94563171]
[1744820294103,26.0,128.39,128.35,42.73641386]
[1744820294418,34.94563171,128.41,128.36,34.94563171]
[1744820294607,34.94563171,128.41,128.37,11.92]
[1744820295216,42.73330203,128.41,128.37,11.92]
[1744820295419,34.94563171,128.4,128.37,11.92]
[1744820295715,34.94563171,128.38,128.37,11.92]
[1744820296305,42.7344261,128.39,128.37,11.92]
[1744820296503,34.94563171,128.38,128.37,11.92]
[1744820296714,34.94563171,128.38,128.32,80.73]
[1744820296907,26.0,128.36,128.34,11.92]
[1744820297809,20.24834886,128.38,128.32,0.03]
[1744820297810,26.0,128.35,128.32,0.03]
[1744820298118,34.94563171,128.33,128.32,0.03]
[1744820298614,42.7380419,128.33,128.32,0.03]
[1744820299117,7.79241019,128.33,128.32,0.03]
[1744820299320,34.94563171,128.33,128.32,0.03]
[1744820299708,34.94563171,128.34,128.32,0.03]
[1744820299907,26.0,128.35,128.32,0.03]
[1744820300119,68.73699647,128.35,128.32,0.03]
[1744820301413,34.94563171,128.35,128.32,34.97563171]
[1744820301617,34.94563171,128.36,128.32,34.97563171]
[1744820302621,42.73640422,128.36,128.32,34.97563171]
[1744820302820,34.94563171,128.33,128.32,0.03]
[1744820303327,34.94563171,128.34,128.32,0.03]
[1744820303511,60.94563171,128.35,128.32,0.03]
[1744820303711,34.94563171,128.34,128.32,0.03]
[1744820304307,26.0,128.35,128.32,0.03]
[1744820304308,34.94563171,128.35,128.32,0.03]
[1744820304805,7.79168589,128.35,128.32,0.03]
[1744820304999,42.7373176,128.35,128.32,0.03]
[1744820305304,42.73647447,128.36,128.32,0.03]
[1744820305509,7.79084276,128.36,128.32,34.97563171]
[1744820306211,7.78876859,128.39,128.35,34.94563171]
[1744820306423,7.78694907,128.42,128.37,34.94563171]
[1744820306620,7.78694907,128.42,128.38,34.94563171]
[1744820306933,42.73258078,128.42,128.37,34.94563171]
[1744820307513,34.94563171,128.41,128.37,34.94563171]
[1744820307724,42.73258078,128.42,128.37,34.94563171]
[1744820308812,7.78664619,128.43,128.39,34.94563171]
[1744820309227,34.94563171,128.42,128.37,42.73554101]
[1744820309731,34.94563171,128.42,128.37,34.94563171]
[1744820310426,34.94563171,128.42,128.37,7.7899644]
[1744820310807,34.94563171,128.43,128.38,34.94563171]
[1744820311007,34.94563171,128.43,128.39,34.94563171]
[1744820311635,34.94563171,128.43,128.38,34.94563171]
[1744820311825,34.94563171,128.41,128.37,34.94563171]
[1744820312838,42.73366669,128.41,128.37,34.94563171]
[1744820315051,34.94563171,128.42,128.37,34.94563171]
[1744820317336,7.78755548,128.41,128.37,34.94563171]
[1744820317648,7.78755548,128.41,128.38,34.94563171]
[1744820318226,7.78755548,128.41,128.37,34.94563171]
[1744820320031,34.94563171,128.39,128.36,11.92]
[1744820320833,42.73318719,128.41,128.36,46.86563171]
[1744820321338,21.84193721,128.4,128.36,33.76193721]
[1744820321541,21.84193721,128.39,128.36,11.92]
[1744820321946,7.78937529,128.38,128.36,11.92]
[1744820325671,19.46888871,128.41,128.36,41.55235689]
[1744820325672,29.62949269,128.41,128.36,41.55235689]
[1744820326066,21.84193721,128.4,128.36,33.76193721]
[1744820326271,7.78876859,128.39,128.36,33.76193721]
[1744820327176,7.78876859,128.39,128.36,11.92]
[1744820327358,29.63041467,128.4,128.36,11.92]
[1744820328754,21.84193721,128.37,128.36,11.92]